bitfinex/quotes_ETHUSD_20241231
["timestamp","ask_amount","ask_price","bid_price","bid_amount"]
[1735667390512,2.98501,3350.1,3349.1,2.98583]
[1735667390698,1.1396,3349.9,3348.4,2.98643]
[1735667390939,4.12512,3349.5,3348.5,4.23304928]
[1735667391221,0.9196,3349.3,3348.4,2.98649]
[1735667391513,0.6996,3349.3,3347.9,1.24664928]
[1735667391682,0.6996,3349.3,3348.5,2.98634]
[1735667391886,0.4796,3349.3,3348.3,2.98655]
[1735667392089,0.2596,3349.3,3348.6,2.98631]
[1735667392401,0.2596,3349.3,3348.8,2.98612]
[1735667392969,0.2596,3349.3,3348.9,2.98604]
[1735667393210,0.2596,3349.3,3349.2,2.98578]
[1735667393521,2.98491,3350.2,3349.2,2.98576]
[1735667393730,0.64869346,3350.1,3349.2,2.98576]
[1735667393890,0.64869346,3350.1,3349.0,3.0]
[1735667394093,3.50202463,3350.3,3349.0,3.0]
[1735667394424,3.50202463,3350.3,3349.4,2.98558]
[1735667394774,3.50202463,3350.3,3348.6,1.1396]
[1735667394975,4.30827499,3350.7,3348.6,1.1396]
[1735667395295,1.1396,3350.4,3349.4,2.98556]
[1735667395473,1.2042,3350.3,3349.4,2.98556]
[1735667395669,4.18901,3350.3,3349.2,2.98575]
[1735667396033,1.2042,3350.0,3349.0,2.98593]
[1735667396230,3.50202463,3350.3,3348.8,2.98613]
[1735667396231,1.2042,3349.8,3348.8,2.98613]
[1735667396374,1.2042,3349.5,3348.0,2.98677]
[1735667396574,1.2042,3349.5,3348.4,2.98642]
[1735667396773,4.18988,3349.4,3348.4,2.98642]
[1735667397191,1.2042,3349.3,3348.4,2.98642]
[1735667397822,1.2042,3349.3,3348.5,2.9864]
[1735667398136,1.2042,3349.3,3347.8,1.1841]
[1735667398271,1.2042,3349.3,3348.2,3.0]
[1735667398468,1.2042,3350.2,3348.5,3.0]
[1735667398720,1.97330246,3350.2,3349.2,2.98572]
[1735667399269,2.98509,3350.0,3349.0,2.98593]
[1735667399472,1.2042,3349.9,3349.0,2.98593]
[1735667399706,1.2042,3349.9,3349.0,2.98588]
[1735667400145,1.2042,3349.9,3348.3,1.1841]
[1735667400146,4.90355488,3349.9,3348.3,1.1841]
[1735667400277,1.2042,3349.5,3348.3,2.9865]
[1735667400476,2.98568,3349.4,3348.4,2.98649]
[1735667400717,1.2042,3349.3,3348.1,3.0]
[1735667400886,1.2042,3349.3,3348.6,2.98632]
[1735667401133,1.2042,3349.3,3347.8,4.1841]
[1735667401299,1.2042,3349.3,3348.4,2.98642]
[1735667401498,1.2042,3349.3,3348.5,3.0]
[1735667401700,1.2042,3349.3,3348.7,2.98619]
[1735667402024,1.2042,3349.3,3348.8,2.98611]
[1735667402225,1.2042,3349.3,3348.3,2.98659]
[1735667402554,1.2042,3349.3,3348.5,3.0]
[1735667402842,1.2042,3349.8,3349.5,2.98544]
[1735667403142,1.2042,3349.8,3349.7,2.98534]
[1735667403443,1.2042,3350.2,3348.8,2.98614]
[1735667403596,1.2042,3350.2,3349.7,2.98528]
[1735667403797,1.2042,3350.2,3349.5,2.98549]
[1735667403992,1.2042,3350.2,3349.8,2.98522]
[1735667404194,2.98436,3350.8,3349.4,2.98557]
[1735667404195,1.2042,3350.6,3349.5,1.1841]
[1735667404397,1.2042,3350.9,3350.5,2.98462]
[1735667404871,1.2042,3350.9,3350.6,2.686433]
[1735667405175,1.2042,3350.9,3350.8,2.98436]
[1735667405566,1.2042,3350.9,3350.4,2.98463]
[1735667405732,1.2042,3350.9,3349.9,3.0]
[1735667405733,1.2042,3350.9,3350.6,2.98453]
[1735667406289,1.2042,3350.9,3350.8,2.98436]
[1735667406632,1.2042,3350.9,3348.8,3.80290277]
[1735667406833,1.2042,3351.0,3348.7,1.1841]
[1735667407139,1.2042,3350.6,3349.5,2.9855]
[1735667408070,1.2042,3350.6,3348.7,8.41697928]
[1735667408071,1.2042,3350.6,3348.8,2.98614]
[1735667408230,1.2042,3350.4,3349.0,2.98588]
[1735667408431,1.2042,3350.4,3349.1,2.98585]
[1735667408432,1.2042,3350.3,3349.1,2.98585]
[1735667408641,1.2042,3350.0,3349.1,2.98585]
[1735667409491,1.2042,3350.0,3348.8,2.98608]
[1735667409492,2.98516,3349.9,3348.8,2.98608]
[1735667409791,2.98516,3349.9,3348.5,2.98639]
[1735667409792,1.2042,3349.4,3348.5,2.98639]
[1735667409994,1.2042,3349.4,3348.2,2.98659]
[1735667410284,1.2042,3349.4,3347.9,1.1841]
[1735667410433,1.2042,3349.5,3348.0,3.0]
[1735667410634,0.2042,3349.5,3348.7,2.98619]
[1735667410947,0.2042,3349.5,3348.5,2.98634]
[1735667411144,0.2042,3349.5,3348.0,2.98685]
[1735667411450,0.2042,3349.5,3348.1,3.0]
[1735667411773,2.98464,3350.5,3349.4,2.98553]
[1735667411929,2.98489,3350.2,3349.1,2.9858]
[1735667412130,2.98526,3349.8,3348.8,2.98609]
[1735667412695,3.71427511,3350.4,3348.7,3.0]
[1735667412997,2.98458,3350.6,3348.4,3.0]
[1735667413304,2.98463,3350.5,3349.5,2.98548]
[1735667413595,5.50962149,3351.2,3349.0,1.2295]
[1735667413596,1.2501,3350.7,3349.8,2.98517]
[1735667414192,1.2501,3350.7,3349.3,3.0]
[1735667414193,1.2501,3350.7,3350.1,2.98495]
[1735667414426,1.2501,3350.7,3349.5,2.98552]
[1735667414701,1.19891036,3351.5,3350.1,1.2295]
[1735667414912,2.44901036,3351.5,3351.0,2.98411]
[1735667415248,2.44901036,3351.5,3350.8,2.98436]
[1735667415448,1.2501,3352.4,3351.5,2.98369]
[1735667415705,1.2501,3352.4,3350.9,4.2295]
[1735667415706,0.54318004,3352.3,3350.9,4.2295]
[1735667415867,1.2501,3352.4,3350.9,4.2295]
[1735667416066,1.2501,3352.4,3351.8,2.98343]
[1735667416912,1.2501,3352.4,3351.6,2.98362]
[1735667417068,1.2501,3352.4,3351.0,3.0]
[1735667417414,1.2501,3352.4,3351.5,2.98369]
[1735667417776,0.423294,3352.3,3351.3,3.0]
[1735667417977,2.98313,3352.2,3351.3,3.0]
[1735667418181,4.23306,3352.4,3351.0,2.98418]
[1735667418431,1.2501,3352.4,3351.1,3.0]
[1735667418710,1.2001,3352.4,3351.1,3.0]
[1735667419019,1.2001,3352.4,3351.0,2.98418]
[1735667419020,1.2001,3352.4,3351.5,2.98371]
[1735667419160,0.418297,3352.3,3351.5,2.98371]
[1735667419492,0.408297,3352.3,3351.3,2.9839]
[1735667419696,2.98321,3352.1,3350.9,2.98418]
[1735667419875,2.98329,3352.0,3350.9,2.98418]
[1735667420076,0.55,3352.3,3351.1,2.98407]
[1735667420077,2.98305,3352.3,3351.1,2.98407]
[1735667420519,3.55,3352.1,3350.1,1.2295]
[1735667420698,2.98365,3351.6,3350.1,4.21444]
[1735667420875,0.298365,3351.5,3350.4,3.0]
[1735667421075,0.55,3351.4,3349.7,1.2295]
[1735667421285,2.98402,3351.2,3349.5,2.98552]
[1735667421484,1.2501,3350.6,3349.6,2.98541]
[1735667421703,2.98482,3350.3,3349.4,1.24664928]
[1735667421909,1.548582,3350.2,3349.4,1.24664928]
[1735667422090,1.548582,3350.2,3349.4,4.23224928]
[1735667422435,1.548582,3350.2,3349.4,2.9856]
[1735667422574,1.2501,3350.2,3349.2,2.98578]
[1735667422774,1.2501,3350.2,3349.0,3.0]
[1735667423127,1.2501,3350.2,3349.6,2.98539]
[1735667423289,1.2501,3350.2,3349.0,3.0]
[1735667423493,1.2501,3350.2,3349.8,2.98523]
[1735667424176,3.23337,3352.0,3349.2,2.98578]
[1735667424177,7.2342,3351.1,3349.2,2.98578]
[1735667424312,2.98435,3350.9,3349.2,3.0]
[1735667424515,1.97352,3351.0,3349.9,2.98508]
[1735667425383,1.97352,3351.0,3349.2,3.0]
[1735667425384,2.98438,3350.8,3349.6,2.98534]
[1735667425672,1.97352,3351.0,3349.9,2.98511]
[1735667425870,1.1562,3350.7,3349.1,2.98581]
[1735667426053,1.7062,3350.4,3348.8,4.21556]
[1735667426234,2.98498,3350.1,3348.8,1.2295]
[1735667426410,1.1562,3350.0,3349.0,2.98593]
[1735667426611,1.1562,3350.0,3349.2,2.98577]
[1735667426812,1.625303,3350.0,3349.4,2.98557]
[1735667427014,1.1562,3350.0,3349.4,2.98557]
[1735667427219,1.1562,3350.0,3348.9,3.0]
[1735667427220,1.1562,3350.0,3349.1,2.98587]
[1735667428077,1.1562,3350.0,3348.6,3.0]
[1735667428281,1.1562,3350.0,3349.2,2.98576]
[1735667429392,1.1562,3350.0,3349.4,2.98558]
[1735667429571,1.1562,3350.0,3348.4,4.1903]
[1735667429745,1.1562,3350.0,3349.6,2.98542]
[1735667430090,1.1562,3350.0,3349.3,3.0]
[1735667430496,1.1562,3350.0,3349.6,2.98542]
[1735667430794,1.1562,3350.5,3349.6,2.98542]
[1735667430951,0.4743299,3350.4,3349.0,3.0]
[1735667431128,4.14084,3350.5,3349.4,2.9856]
[1735667431862,1.1562,3350.3,3348.9,3.0]
[1735667432061,1.1562,3350.3,3349.3,2.98567]
[1735667432224,1.1562,3350.3,3348.8,1.1903]
[1735667432421,1.1562,3350.3,3349.5,2.98543]
[1735667432649,1.6305389,3350.3,3349.5,2.98543]
[1735667432857,1.1562,3350.3,3349.1,2.98587]
[1735667433052,1.1562,3350.3,3349.8,2.98522]
[1735667433329,1.1562,3350.3,3349.2,3.0]
[1735667433330,1.1562,3350.3,3349.4,2.98557]
[1735667433773,1.1562,3350.3,3349.0,3.0]
[1735667434078,1.1562,3350.3,3349.4,3.0]
[1735667434368,1.1562,3350.3,3349.1,3.0]
[1735667434527,1.1562,3350.3,3349.7,2.9853]
[1735667435032,1.1562,3350.3,3349.1,3.0]
[1735667435033,1.1562,3350.3,3349.8,2.98518]
[1735667435969,1.1562,3350.3,3349.2,2.98578]
[1735667436258,0.72342,3351.0,3349.0,2.98592]
[1735667436259,1.1562,3351.3,3349.4,1.1903]
[1735667436435,2.21208556,3351.3,3350.6,2.98452]
[1735667436977,2.21208556,3351.3,3350.6,2.9845]
[1735667437482,1.74141369,3351.3,3350.4,2.98467]
[1735667437988,1.74141369,3351.3,3350.2,2.98487]
[1735667437989,1.1562,3351.3,3350.2,3.0]
[1735667438189,1.1562,3351.3,3350.5,2.98459]
[1735667438387,4.14013,3351.3,3350.4,3.0]
[1735667438530,0.60784395,3351.4,3350.0,2.98498]
[1735667438531,4.14047,3350.9,3350.0,2.98498]
[1735667438732,1.1562,3350.7,3349.3,2.98569]
[1735667438976,1.1562,3350.4,3349.1,2.98587]
[1735667439180,1.74775974,3350.4,3350.0,2.98505]
[1735667439343,1.74775974,3350.4,3349.0,2.43694928]
[1735667439344,1.74775974,3350.4,3349.5,2.98547]
[1735667439547,1.74775974,3350.4,3349.0,1.24664928]
[1735667439748,1.1562,3350.2,3349.1,2.98587]
[1735667440062,1.1562,3350.2,3349.6,2.98535]
[1735667440774,1.1562,3350.2,3349.8,2.98523]
[1735667440977,1.1562,3350.2,3348.8,3.0]
[1735667441284,1.1562,3350.2,3349.5,2.9855]
[1735667441465,1.1562,3350.2,3349.6,2.98536]
[1735667441650,1.1562,3350.2,3349.7,2.98533]
[1735667441851,1.1562,3350.2,3349.9,2.98514]
[1735667442379,1.1562,3350.2,3348.6,3.0]
[1735667442540,1.1562,3350.2,3349.3,3.0]
[1735667442741,4.14111,3350.2,3349.3,3.0]
[1735667443156,0.414111,3350.1,3349.3,3.0]
[1735667443983,0.414111,3350.1,3349.4,2.98559]
[1735667444679,1.1562,3350.2,3348.9,3.0]
[1735667444883,1.1562,3350.2,3349.7,2.98532]
[1735667445478,1.1562,3350.2,3349.3,3.0]
[1735667445679,1.1562,3350.2,3349.3,2.98567]
[1735667445979,1.1562,3350.2,3349.1,3.0]
[1735667446186,1.141,3350.1,3348.3,4.24664928]
[1735667446430,1.141,3350.1,3349.6,2.9854]
[1735667446545,1.141,3350.1,3349.3,2.98564]
[1735667446734,1.141,3350.1,3349.1,2.98584]
[1735667446942,3.53509,3350.0,3348.6,5.98627]
[1735667447180,1.141,3349.8,3348.9,2.98602]
[1735667447493,1.141,3349.8,3348.3,1.1881]
[1735667447782,1.141,3349.8,3348.9,2.98605]
[1735667447983,1.141,3349.8,3349.0,2.98595]
[1735667448183,1.141,3349.8,3349.5,2.9855]
[1735667448385,1.141,3350.2,3349.7,2.98534]
[1735667448687,1.141,3350.2,3349.1,1.1881]
[1735667448688,1.141,3350.2,3349.8,2.98519]
[1735667449139,1.141,3350.2,3349.3,3.0]
[1735667449338,1.141,3350.2,3350.0,2.98506]
[1735667449588,1.141,3350.2,3349.8,2.98525]
[1735667449743,1.19891036,3350.7,3350.6,2.98454]
[1735667449938,1.19891036,3351.5,3350.6,2.98454]
[1735667450157,1.141,3351.4,3350.3,2.9848]
[1735667450368,1.141,3351.4,3351.2,2.98398]
[1735667450555,1.19891036,3351.5,3351.3,2.98391]
[1735667450791,1.19891036,3351.5,3351.1,2.98406]
[1735667450935,1.19891036,3351.5,3350.8,2.98435]
[1735667451409,1.19891036,3351.5,3350.7,1.1881]
[1735667451695,1.141,3351.7,3351.3,2.98389]
[1735667451859,1.141,3351.7,3350.7,1.1881]
[1735667452048,1.141,3351.7,3351.4,2.98376]
[1735667452246,3.0,3352.4,3351.5,2.98366]
[1735667452446,1.85917704,3352.3,3351.5,2.98366]
[1735667452858,1.85917704,3352.3,3351.2,2.98393]
[1735667453069,2.98315,3352.2,3351.2,2.98393]
[1735667453246,2.98315,3352.2,3351.3,2.9839]
[1735667455017,1.75440069,3352.3,3350.7,1.1881]
[1735667455152,1.75440069,3352.3,3351.6,2.98364]
[1735667455358,2.98321,3352.1,3351.1,2.98408]
[1735667455710,1.2377,3351.9,3351.1,2.98408]
[1735667455907,1.2377,3351.9,3350.9,3.0]
[1735667456054,4.22108,3351.9,3350.9,2.98427]
[1735667456255,1.2377,3351.9,3351.0,2.98415]
[1735667457060,2.98349,3351.8,3350.8,3.0]
[1735667457259,0.61340069,3352.3,3350.3,1.1519]
[1735667457260,0.422119,3351.7,3350.3,1.1519]
[1735667457478,1.2377,3351.6,3350.8,2.98432]
[1735667457708,1.2377,3351.6,3350.0,4.23163928]
[1735667457709,1.2377,3351.6,3350.9,2.98419]
[1735667457889,1.2377,3351.6,3351.0,2.98416]
[1735667458106,0.61340069,3352.3,3350.9,2.98427]
[1735667458311,4.22083,3352.2,3351.2,2.98393]
[1735667458619,0.48342307,3352.1,3351.2,2.98393]
[1735667459465,4.22082,3352.2,3351.2,2.98393]
[1735667459817,1.2377,3351.7,3350.5,3.0]
[1735667459982,1.2377,3351.7,3350.1,1.1519]
[1735667460178,1.2377,3351.7,3350.3,2.9848]
[1735667460505,1.2377,3351.7,3350.4,5.98471]
[1735667460684,1.2377,3351.7,3351.0,2.98413]
[1735667460899,1.2377,3351.7,3350.5,2.98462]
[1735667461070,1.2377,3351.7,3350.9,1.1519]
[1735667461277,1.2377,3352.2,3351.5,2.98367]
[1735667461539,1.72109707,3352.2,3351.4,2.9838]
[1735667461739,1.2377,3352.2,3351.6,2.98361]
[1735667462040,1.2377,3352.2,3350.9,1.1519]
[1735667462240,1.2377,3352.2,3352.1,2.9832]
[1735667462440,1.2015,3352.7,3352.2,2.9831]
[1735667462752,1.2015,3352.7,3351.9,2.98337]
[1735667462974,1.73978204,3352.7,3351.5,4.20485]
[1735667463114,1.73978204,3352.7,3351.9,2.98336]
[1735667463807,1.2015,3352.7,3351.9,2.98336]
[1735667464225,1.2015,3352.7,3351.1,1.2212]
[1735667464426,3.0,3352.5,3351.1,2.98406]
[1735667464626,3.0,3352.5,3350.5,0.1]
[1735667464627,2.98339,3351.9,3350.8,2.98435]
[1735667464844,1.2015,3351.8,3350.9,2.98424]
[1735667465048,0.418489,3351.7,3350.7,2.98441]
[1735667465270,0.418489,3351.7,3350.5,3.1]
[1735667465424,1.2015,3351.8,3350.5,0.1]
[1735667465627,1.2015,3351.8,3350.9,3.0]
[1735667465941,1.2015,3352.4,3351.1,3.0]
[1735667466143,1.2015,3352.4,3352.3,2.98302]
[1735667466327,1.2015,3353.5,3352.1,2.98316]
[1735667466526,2.98215,3353.3,3351.6,3.0]
[1735667466733,2.98215,3353.3,3352.3,2.98301]
[1735667466934,2.98215,3353.3,3351.5,2.98373]
[1735667466935,1.20398535,3352.7,3351.6,3.0]
[1735667467168,1.20398535,3352.7,3352.4,2.98284]
[1735667467722,1.20398535,3352.7,3352.5,2.98278]
[1735667467922,1.20398535,3352.7,3352.6,2.98275]
[1735667469357,4.81345605,3353.4,3352.0,1.2212]
[1735667469358,1.2015,3353.4,3352.1,2.9832]
[1735667469555,1.2015,3353.4,3352.9,2.98244]
[1735667469759,1.20398535,3354.1,3353.3,2.98213]
[1735667469957,1.50249634,3354.0,3352.9,1.2212]
[1735667470157,1.20398535,3354.1,3353.9,2.9816]
[1735667470572,1.20398535,3354.1,3354.0,2.98151]
[1735667470779,1.2015,3354.4,3353.5,2.98189]
[1735667470977,1.2015,3354.4,3353.4,3.0]
[1735667471286,1.2015,3354.4,3354.1,2.98142]
[1735667471786,1.2015,3354.4,3353.7,3.0]
[1735667471944,1.2015,3354.4,3354.1,2.98141]
[1735667472140,1.1816,3354.9,3354.2,2.98126]
[1735667472344,1.1816,3354.9,3353.7,4.1519]
[1735667472577,1.1816,3354.9,3354.3,2.98119]
[1735667472793,1.1816,3354.9,3354.4,2.98114]
[1735667472974,1.1816,3354.9,3354.1,3.0]
[1735667473174,3.80102691,3356.1,3355.0,2.98061]
[1735667473355,1.98005923,3356.0,3355.0,2.98061]
[1735667473541,0.98005923,3356.0,3355.0,2.98053]
[1735667474168,3.98005923,3356.0,3355.1,2.98051]
[1735667474643,2.98012,3355.6,3354.4,3.0]
[1735667474849,3.0,3355.5,3353.8,2.98162]
[1735667475050,3.80102691,3355.1,3353.3,2.98213]
[1735667475301,3.80102691,3355.1,3353.4,3.0]
[1735667475512,0.55,3354.9,3353.4,2.98204]
[1735667475805,3.80102691,3355.1,3353.2,1.1519]
[1735667476003,3.80102691,3355.1,3353.7,3.0]
[1735667476206,0.38010269,3355.0,3353.7,3.0]
[1735667476351,0.38010269,3355.0,3353.2,1.1519]
[1735667476352,0.38010269,3355.0,3353.9,2.98156]
[1735667476547,1.1816,3354.9,3353.6,2.98182]
[1735667476863,4.16232,3354.9,3353.7,2.98176]
[1735667477380,1.1816,3354.9,3353.7,2.98176]
[1735667477582,2.98101,3354.6,3353.4,2.98202]
[1735667477747,1.1816,3354.7,3353.5,2.98188]
[1735667478108,1.1816,3354.7,3353.7,2.98174]
[1735667479751,1.1816,3354.7,3353.3,3.0]
[1735667479948,1.1816,3354.7,3353.3,5.98208]
[1735667480210,1.1816,3354.7,3353.3,2.98213]
[1735667480500,1.1816,3354.7,3353.2,4.13411]
[1735667480701,1.1816,3354.7,3354.2,2.98126]
[1735667480909,1.1816,3354.7,3353.3,2.98213]
[1735667481198,1.1816,3354.7,3354.4,3.0]
[1735667481402,1.1816,3355.5,3354.5,2.98106]
[1735667481629,0.79626369,3355.4,3354.5,2.98106]
[1735667482164,0.79626369,3355.4,3354.2,3.0]
[1735667482385,1.1816,3355.5,3354.2,5.98127]
[1735667482566,1.1816,3355.5,3354.8,2.98079]
[1735667482784,1.1816,3355.5,3354.6,2.98096]
[1735667482985,1.1816,3355.5,3354.5,3.0]
[1735667483157,1.1816,3355.5,3354.5,2.98106]
[1735667483355,0.416171,3355.4,3354.5,2.98106]
[1735667483601,1.1816,3355.5,3354.5,2.98106]
[1735667483951,1.1816,3355.5,3354.6,2.98097]
[1735667484227,1.1816,3355.5,3354.0,4.1519]
[1735667484718,1.1816,3355.5,3355.1,2.98045]
[1735667484897,1.1816,3355.5,3355.3,2.98035]
[1735667485097,1.1816,3355.5,3355.1,2.98045]
[1735667485301,1.1816,3355.5,3355.2,2.98036]
[1735667485683,1.1816,3355.5,3355.0,2.98061]
[1735667485898,1.1816,3355.5,3355.1,2.98045]
[1735667486060,1.1816,3355.5,3354.8,2.9808]
[1735667486265,1.1816,3355.5,3355.2,2.98044]
[1735667486977,1.1378,3355.7,3355.2,2.98044]
[1735667487301,1.1378,3355.7,3355.3,2.98033]
[1735667487864,1.1378,3355.7,3354.7,1.1335]
[1735667488314,1.1378,3355.7,3355.1,2.98051]
[1735667488966,1.1378,3355.7,3355.2,2.98044]
[1735667489365,1.1378,3355.7,3354.9,2.98071]
[1735667489705,1.1378,3356.5,3355.1,3.0]
[1735667489868,1.1378,3356.5,3355.9,2.97982]
[1735667490067,1.1378,3356.5,3356.1,2.97961]
[1735667490290,1.1378,3356.5,3355.2,1.1546]
[1735667490291,0.59102494,3356.4,3356.3,2.97947]
[1735667490497,1.1378,3357.3,3355.9,4.1546]
[1735667490728,1.1378,3357.3,3356.1,2.97958]
[1735667490729,0.46274892,3357.2,3356.1,2.97958]
[1735667491022,3.44141892,3357.2,3356.1,2.97958]
[1735667491198,0.46274892,3357.2,3356.3,2.97946]
[1735667491512,0.59849568,3357.0,3356.3,2.97946]
[1735667491889,0.59849568,3357.0,3356.4,2.97934]
[1735667492090,0.81840014,3357.0,3356.4,2.97934]
[1735667492291,0.81840014,3357.0,3356.5,2.97927]
[1735667492515,0.59849568,3357.0,3356.2,3.0]
[1735667492690,0.59849568,3357.0,3356.4,2.97937]
[1735667492901,0.59849568,3357.0,3355.5,4.13475]
[1735667492902,1.1378,3356.9,3355.5,4.13475]
[1735667493189,4.11676,3356.9,3355.8,2.97991]
[1735667493642,4.11676,3356.9,3355.9,3.0]
[1735667493839,4.11676,3356.9,3355.5,1.1546]
[1735667493840,0.82049448,3356.8,3356.1,2.97964]
[1735667493984,0.82049448,3356.8,3355.6,5.98004]
[1735667493985,0.82049448,3356.8,3355.9,2.97981]
[1735667494191,0.82049448,3356.8,3355.7,3.0]
[1735667494501,0.82049448,3356.8,3355.9,3.0]
[1735667494701,3.48968915,3356.6,3354.9,1.1546]
[1735667494902,3.48968915,3356.6,3354.9,2.98067]
[1735667494903,3.48968915,3355.8,3354.9,2.98067]
[1735667495288,3.48968915,3355.8,3354.2,1.1546]
[1735667495289,3.48968915,3355.4,3354.2,1.1546]
[1735667495489,0.58624367,3355.2,3354.2,2.98132]
[1735667495744,1.1378,3354.9,3353.7,1.1546]
[1735667496034,1.1378,3354.5,3353.5,2.98193]
[1735667496408,1.1378,3354.5,3352.9,1.1546]
[1735667496733,3.48968915,3354.2,3352.9,1.1546]
[1735667496918,1.1378,3354.1,3352.4,1.1546]
[1735667497093,1.1378,3354.1,3352.8,2.98258]
[1735667497292,0.46274892,3354.0,3352.9,3.0]
[1735667497489,0.46274892,3354.0,3353.3,2.98211]
[1735667497703,0.46274892,3354.0,3353.1,2.9823]
[1735667498118,0.46274892,3354.0,3353.2,2.98216]
[1735667498589,0.55,3354.0,3352.7,2.98262]
[1735667498832,1.1378,3353.9,3352.7,2.98266]
[1735667499031,4.93554517,3353.9,3352.7,2.98266]
[1735667499274,1.1378,3353.8,3352.7,2.98266]
[1735667499445,0.54855452,3353.7,3352.4,3.0]
[1735667499737,0.54855452,3353.7,3352.8,2.98257]
[1735667500702,0.54855452,3353.7,3352.6,2.98275]
[1735667500943,0.54855452,3353.7,3352.8,2.98256]
[1735667501502,1.1378,3353.8,3352.5,2.98284]
[1735667501704,1.1378,3353.8,3353.0,2.98234]
[1735667501917,1.1378,3353.8,3352.8,3.0]
[1735667502121,6.79774517,3354.4,3353.4,2.98203]
[1735667502122,1.2379,3354.3,3353.4,2.98203]
[1735667502304,1.74146452,3354.3,3353.1,3.0]
[1735667502504,1.2379,3354.3,3353.3,2.98205]
[1735667503540,1.2379,3354.3,3353.6,2.98179]
[1735667503936,1.2379,3354.3,3353.0,3.0]
[1735667504151,1.2379,3354.3,3353.3,2.9821]
[1735667504351,1.2379,3354.2,3352.5,1.1446]
[1735667504551,1.10168252,3354.1,3352.5,1.1446]
[1735667504727,1.10168252,3354.1,3353.5,2.98194]
[1735667505057,1.2379,3354.2,3353.8,2.98166]
[1735667505354,1.2379,3354.2,3353.9,2.98157]
[1735667505724,1.2379,3354.2,3353.3,1.1446]
[1735667505725,1.2379,3354.2,3353.7,2.98176]
[1735667506023,1.2379,3354.2,3352.7,2.98267]
[1735667506357,1.2379,3354.0,3353.0,2.98237]
[1735667506654,0.47879,3353.9,3353.1,2.98231]
[1735667506853,1.2379,3354.0,3353.1,2.98231]
[1735667507228,1.2379,3354.0,3352.9,2.98246]
[1735667507424,1.2379,3354.0,3352.7,2.98267]
[1735667507637,1.2379,3354.0,3353.1,2.98229]
[1735667508039,1.2379,3354.0,3352.7,2.98267]
[1735667508259,0.17879,3353.9,3352.9,2.98245]
[1735667508444,0.17879,3353.9,3353.0,2.98234]
[1735667508639,1.2379,3353.8,3352.8,2.98255]
[1735667508841,1.2379,3353.8,3352.3,1.1446]
[1735667509156,1.2379,3353.8,3353.1,2.98231]
[1735667509360,1.2379,3353.8,3352.6,3.0]
[1735667509574,1.2379,3353.8,3352.8,3.0]
[1735667509719,1.2379,3353.8,3352.7,3.0]
[1735667509912,1.2379,3353.8,3353.2,2.98221]
[1735667510530,1.2379,3353.8,3352.5,1.1446]
[1735667510755,1.2379,3353.8,3353.4,2.98196]
[1735667510958,1.2379,3353.8,3353.1,2.98224]
[1735667511132,1.2379,3353.8,3352.9,2.98248]
[1735667511560,1.2379,3353.6,3352.1,4.12775]
[1735667511823,1.2379,3353.4,3351.8,2.98339]
[1735667511977,1.2379,3353.4,3352.6,2.98271]
[1735667512187,1.2379,3353.4,3352.2,3.0]
[1735667512384,1.2379,3353.4,3352.3,3.0]
[1735667512681,1.2379,3353.4,3352.7,2.98265]
[1735667512892,1.2379,3353.4,3352.8,2.98257]
[1735667513193,1.2379,3353.4,3353.1,2.98228]
[1735667513336,1.2379,3353.4,3352.4,1.1446]
[1735667513537,1.2379,3353.4,3353.1,2.9823]
[1735667513785,1.2379,3353.4,3353.3,2.98213]
[1735667513998,1.2379,3353.4,3352.8,2.98254]
[1735667514851,1.2379,3353.4,3352.5,5.98278]
[1735667515205,1.2379,3353.4,3352.0,1.1446]
[1735667515337,1.2379,3353.4,3352.4,3.0]
[1735667515689,1.2379,3353.4,3353.0,2.98238]
[1735667515992,1.2379,3353.4,3352.6,2.98272]
[1735667516329,1.2379,3353.4,3352.8,2.98255]
[1735667517486,1.2379,3353.4,3352.9,3.0]
[1735667518834,1.2379,3353.4,3352.0,4.12788]
[1735667518835,1.71108384,3353.4,3352.7,3.0]
[1735667519133,1.2562,3353.2,3351.7,2.9835]
[1735667519288,1.2562,3353.2,3352.6,3.0]
[1735667519497,1.2562,3353.2,3351.3,1.1652]
[1735667519498,1.2562,3352.8,3351.8,2.98345]
[1735667519674,1.2562,3352.8,3351.3,1.1652]
[1735667519870,1.73121384,3352.8,3351.9,2.9833]
[1735667520238,1.73121384,3352.8,3351.6,3.0]
[1735667520373,1.73121384,3352.8,3352.0,2.98326]
[1735667520569,1.73121384,3352.8,3351.6,3.0]
[1735667520775,1.73121384,3352.8,3351.8,3.0]
[1735667520776,1.2562,3352.8,3351.8,3.0]
[1735667521279,1.2562,3352.8,3351.7,3.0]
[1735667521611,1.2562,3352.8,3350.6,1.49716559]
[1735667521612,1.2562,3353.4,3353.2,2.98215]
[1735667521979,1.2562,3353.4,3352.8,2.98257]
[1735667522293,1.2562,3353.4,3352.2,1.1652]
[1735667522491,1.2562,3353.4,3353.1,2.98231]
[1735667522707,1.2562,3354.0,3353.5,2.98193]
[1735667522878,1.2562,3354.0,3353.6,2.98183]
[1735667523069,1.2562,3354.0,3352.6,3.0]
[1735667523273,0.47501384,3353.9,3353.1,2.98223]
[1735667523504,1.2562,3353.8,3353.1,2.98223]
[1735667523909,1.2562,3353.8,3353.2,2.9822]
[1735667524117,1.2562,3353.8,3352.8,3.0]